bitfinex/quotes_BTCUSD_20230120
["timestamp","ask_amount","ask_price","bid_price","bid_amount"]
[1674219330795,0.62735145,21119.0,21118.0,0.08170441]
[1674219331058,1.02329878,21119.0,21118.0,0.08170441]
[1674219331363,0.62735145,21119.0,21118.0,0.08170441]
[1674219331823,0.78314153,21119.0,21118.0,0.08170441]
[1674219333639,0.62735145,21119.0,21118.0,0.08170441]
[1674219333934,0.51635145,21119.0,21118.0,0.08170441]
[1674219334178,1.05803379,21119.0,21118.0,0.08170441]
[1674219334424,1.17131043,21119.0,21118.0,0.08170441]
[1674219334691,1.77131043,21119.0,21118.0,0.08170441]
[1674219334949,2.25391262,21119.0,21118.0,0.08170441]
[1674219335239,2.78775264,21119.0,21118.0,0.08170441]
[1674219335496,3.03110923,21119.0,21118.0,0.08170441]
[1674219335756,2.12310923,21119.0,21118.0,0.07570441]
[1674219336021,2.20910923,21119.0,21118.0,0.07570441]
[1674219336295,2.42310923,21119.0,21118.0,0.07570441]
[1674219336593,2.50910923,21119.0,21118.0,0.07570441]
[1674219337369,2.20910923,21119.0,21118.0,0.07570441]
[1674219337590,2.98261623,21119.0,21118.0,0.07559532]
[1674219337847,3.34685217,21119.0,21118.0,0.07559532]
[1674219338118,3.33795964,21119.0,21118.0,0.07559532]
[1674219338360,3.2488773,21119.0,21118.0,0.07559532]
[1674219338612,3.09869559,21119.0,21118.0,0.07559532]
[1674219338865,3.39862177,21119.0,21118.0,0.07559532]
[1674219339143,2.8709882,21119.0,21118.0,0.07559532]
[1674219339377,3.00107323,21119.0,21118.0,0.07559532]
[1674219339622,3.38972109,21119.0,21118.0,0.07559532]
[1674219340663,2.8709882,21119.0,21118.0,0.07559532]
[1674219340908,2.58786014,21119.0,21118.0,0.07559532]
[1674219341697,2.88786014,21119.0,21118.0,0.07559532]
[1674219341949,3.2764858,21119.0,21118.0,0.07559532]
[1674219342206,2.58786014,21119.0,21118.0,0.07559532]
[1674219342458,2.88786014,21119.0,21118.0,0.07559532]
[1674219342710,1.98786014,21119.0,21118.0,0.07559532]
[1674219343262,2.46136714,21119.0,21118.0,0.07559532]
[1674219343756,2.76136714,21119.0,21118.0,0.07559532]
[1674219343998,2.17176714,21119.0,21118.0,0.07559532]
[1674219346022,2.09546714,21119.0,21118.0,0.07559532]
[1674219346525,2.42684009,21119.0,21118.0,0.07559532]
[1674219347032,2.42684009,21119.0,21118.0,0.07541192]
[1674219348295,2.09546714,21119.0,21118.0,0.07541192]
[1674219355163,2.39546714,21119.0,21118.0,0.07541192]
[1674219357994,2.39546714,21119.0,21118.0,0.07493664]
[1674219359271,2.09546714,21119.0,21118.0,0.07493664]
[1674219359789,2.09540693,21119.0,21118.0,0.07493664]
[1674219360051,1.91767959,21119.0,21118.0,0.2514712]
[1674219360316,1.91767959,21119.0,21118.0,0.07493664]
[1674219360569,1.76767959,21119.0,21118.0,0.07493664]
[1674219361632,0.82066559,21119.0,21118.0,0.07493664]
[1674219362191,0.82066559,21119.0,21118.0,0.07550658]
[1674219362462,0.44429124,21119.0,21118.0,0.07550658]
[1674219363242,0.11394924,21119.0,21118.0,0.07550658]
[1674219363544,0.42234024,21119.0,21118.0,0.07550658]
[1674219364577,0.11394924,21119.0,21118.0,1.00599434]
[1674219364846,0.11394924,21119.0,21118.0,1.47952334]
[1674219365399,0.11394924,21119.0,21118.0,1.77952334]
[1674219365664,0.02794924,21119.0,21118.0,1.74983113]
[1674219365915,0.02794924,21119.0,21118.0,1.63485758]
[1674219365916,0.07694924,21119.0,21118.0,1.63485758]
[1674219366229,0.07694924,21119.0,21118.0,1.74710453]
[1674219366499,0.08094924,21119.0,21118.0,1.75910453]
[1674219367040,0.02794924,21119.0,21118.0,1.32256458]
[1674219367297,0.02794924,21119.0,21118.0,1.67221136]
[1674219367584,0.02794924,21119.0,21118.0,1.3226696]
[1674219367854,0.02794924,21119.0,21118.0,1.678509]
[1674219368868,0.02794924,21119.0,21118.0,1.37840398]
[1674219369114,0.03194924,21119.0,21118.0,1.39040398]
[1674219369928,0.02794924,21119.0,21118.0,1.37840398]
[1674219370954,0.03605395,21119.0,21118.0,0.44334598]
[1674219371255,0.35848995,21119.0,21118.0,0.08750658]
[1674219371525,0.35838524,21119.0,21118.0,0.08750658]
[1674219371794,0.308964,21118.0,21116.0,0.55697249]
[1674219372048,0.43840601,21118.0,21116.0,0.55697249]
[1674219372830,0.43840601,21118.0,21116.0,0.59297249]
[1674219373088,0.44740601,21118.0,21116.0,0.59397249]
[1674219373346,0.44740601,21118.0,21116.0,0.2626]
[1674219373643,0.009,21118.0,21116.0,0.2626]
[1674219373966,0.009,21118.0,21116.0,1.09899401]
[1674219374212,0.009,21118.0,21117.0,0.45]
[1674219374501,0.009,21118.0,21117.0,1.548704]
[1674219375062,0.009,21118.0,21117.0,1.584704]
[1674219375861,0.02794924,21119.0,21117.0,1.284704]
[1674219376119,0.009,21118.0,21117.0,1.209704]
[1674219376373,0.009,21118.0,21117.0,1.285404]
[1674219376923,0.42026959,21118.0,21117.0,0.036]
[1674219377186,0.42016488,21118.0,21117.0,0.037]
[1674219377434,0.42016488,21118.0,21117.0,0.036]
[1674219377663,0.42016488,21118.0,21117.0,0.037]
[1674219377664,0.74712888,21118.0,21117.0,0.037]
[1674219378247,0.42916488,21118.0,21117.0,0.037]
[1674219378794,0.74556488,21118.0,21116.0,0.0763]
[1674219379073,0.42916488,21118.0,21117.0,0.036]
[1674219379323,0.009,21118.0,21117.0,0.036]
[1674219379586,0.009,21118.0,21116.0,0.0763]
[1674219379858,0.38003073,21117.0,21114.0,1.34635256]
[1674219380116,0.33510371,21116.0,21114.0,1.34635256]
[1674219380374,0.322332,21115.0,21114.0,1.34635256]
[1674219380656,0.322332,21115.0,21114.0,1.05025256]
[1674219380919,0.38003073,21117.0,21114.0,1.05025256]
[1674219381194,0.00410471,21116.0,21114.0,1.05025256]
[1674219381454,0.38003073,21117.0,21114.0,0.585618]
[1674219381739,0.004,21115.0,21114.0,0.112]
[1674219382849,0.38003073,21117.0,21115.0,0.39375096]
[1674219383419,0.38003073,21117.0,21116.0,0.00011686]
[1674219383688,0.38003073,21117.0,21116.0,0.1377]
[1674219383689,0.38013544,21117.0,21116.0,0.1377]
[1674219383947,0.75374444,21117.0,21115.0,0.39375096]
[1674219384208,0.38013544,21117.0,21116.0,0.036]
[1674219384496,0.80315073,21117.0,21116.0,0.036]
[1674219384761,0.80325544,21117.0,21116.0,0.036]
[1674219385011,0.71315073,21117.0,21116.0,0.036]
[1674219385270,0.33312,21117.0,21116.0,0.036]
[1674219385554,0.83498025,21119.0,21116.0,0.036]
[1674219385888,0.76812727,21118.0,21116.0,0.78458494]
[1674219386158,0.319289,21117.0,21116.0,0.646585]
[1674219386421,0.09,21117.0,21116.0,0.646585]
[1674219386681,0.43881627,21118.0,21116.0,0.646585]
[1674219386950,0.43881627,21118.0,21116.0,1.120159]
[1674219387225,0.09,21118.0,21117.0,0.42293495]
[1674219387778,0.09,21118.0,21117.0,0.42093495]
[1674219388609,0.09,21118.0,21117.0,0.45693495]
[1674219391294,0.09,21118.0,21117.0,0.036]
[1674219391805,0.407001,21118.0,21117.0,0.036]
[1674219392332,0.09,21118.0,21117.0,0.036]
[1674219392790,0.09,21118.0,21117.0,0.186]
[1674219393047,0.09,21118.0,21117.0,0.036]
[1674219395451,0.403556,21118.0,21117.0,0.036]
[1674219395977,0.09,21118.0,21117.0,0.036]
[1674219396244,0.407182,21118.0,21117.0,0.036]
[1674219396514,0.408182,21118.0,21117.0,0.036]
[1674219397048,0.091,21118.0,21117.0,0.036]
[1674219397313,0.412281,21118.0,21117.0,0.036]
[1674219397578,0.091,21118.0,21117.0,0.036]
[1674219397887,0.423652,21118.0,21117.0,0.036]
[1674219398554,0.091,21118.0,21117.0,0.036]
[1674219399879,0.421098,21118.0,21117.0,0.036]
[1674219400149,0.421098,21118.0,21117.0,0.44195531]
[1674219400398,0.091,21118.0,21117.0,0.44195531]
[1674219400906,0.091,21118.0,21117.0,0.59195531]
[1674219402171,0.09110471,21118.0,21117.0,0.44195531]
[1674219402427,0.091,21118.0,21117.0,0.44195531]
[1674219402687,0.091,21118.0,21117.0,0.036]
[1674219402966,0.415199,21118.0,21117.0,0.036]
[1674219403203,0.091,21118.0,21117.0,0.036]
[1674219403673,0.41442,21118.0,21117.0,0.036]
[1674219404451,0.41452471,21118.0,21117.0,0.036]
[1674219406030,0.41442,21118.0,21117.0,0.036]
[1674219406309,0.091,21118.0,21117.0,0.036]
[1674219406856,0.444238,21118.0,21117.0,0.036]
[1674219407425,0.44434271,21118.0,21117.0,0.036]
[1674219407701,0.80045105,21118.0,21117.0,0.036]
[1674219407965,1.27398005,21118.0,21117.0,0.036]
[1674219408524,1.27387534,21118.0,21117.0,0.036]
[1674219409647,0.80034634,21118.0,21117.0,0.036]
[1674219409907,0.80045105,21118.0,21117.0,0.036]
[1674219410713,1.74750905,21118.0,21117.0,0.036]
[1674219411229,1.97826675,21118.0,21117.0,0.036]
[1674219412554,1.62215841,21118.0,21117.0,0.036]
[1674219412812,1.62215841,21118.0,21117.0,0.035]
[1674219412813,2.0724818,21118.0,21117.0,0.035]
[1674219413076,2.0995188,21118.0,21117.0,0.035]
[1674219413627,1.7353715,21118.0,21117.0,0.035]
[1674219413890,2.09655141,21118.0,21117.0,0.035]
[1674219414167,1.98333832,21118.0,21117.0,0.035]
[1674219414429,1.75258062,21118.0,21117.0,0.035]
[1674219415766,1.75247591,21118.0,21117.0,0.035]
[1674219419285,1.75258062,21118.0,21117.0,0.035]
[1674219420631,1.27905162,21118.0,21117.0,0.035]
[1674219420899,1.75258062,21118.0,21117.0,0.035]
[1674219421476,2.14441126,21118.0,21117.0,0.035]
[1674219421735,1.75258062,21118.0,21117.0,0.035]
[1674219423233,1.28927143,21118.0,21117.0,0.035]
[1674219423508,1.61674943,21118.0,21117.0,0.035]
[1674219424765,1.61664472,21118.0,21117.0,0.035]
[1674219427326,1.14322043,21118.0,21117.0,0.035]
[1674219430127,1.27464071,21118.0,21117.0,0.035]
[1674219430421,1.6118538,21118.0,21117.0,0.035]
[1674219430636,1.78176877,21118.0,21117.0,0.035]
[1674219430892,2.20141677,21118.0,21117.0,0.035]
[1674219431142,2.135304,21118.0,21117.0,0.035]
[1674219431401,2.135304,21118.0,21112.0,0.38785298]
[1674219431402,1.78176877,21118.0,21112.0,0.38785298]
[1674219431745,0.8688935,21117.0,21113.0,0.15]
[1674219431919,0.19432097,21117.0,21116.0,0.036]
[1674219432180,0.38185066,21116.0,21113.0,0.15]
[1674219432433,0.336565,21115.0,21113.0,0.186]
[1674219432700,0.315194,21114.0,21113.0,0.036]
[1674219433238,1.485932,21114.0,21113.0,0.036]
[1674219433498,1.485932,21114.0,21113.0,0.12]
[1674219433767,1.59914509,21114.0,21113.0,0.036]
[1674219434026,1.60014509,21114.0,21113.0,0.12]
[1674219434328,2.69843761,21114.0,21113.0,0.12]
[1674219434583,3.81585327,21114.0,21113.0,0.12]
[1674219434848,2.59635513,21114.0,21113.0,0.12]
[1674219435117,2.24745483,21114.0,21113.0,0.12]
[1674219435660,2.07753986,21114.0,21113.0,0.12]
[1674219435939,2.07764457,21114.0,21113.0,0.12]
[1674219436193,1.9642384,21114.0,21113.0,0.12]
[1674219437280,2.35754089,21114.0,21113.0,0.12]
[1674219437531,2.37189973,21114.0,21113.0,0.12]
[1674219438517,2.4853059,21114.0,21113.0,0.12]
[1674219439033,2.37189973,21114.0,21113.0,0.12]
[1674219439302,2.4853059,21114.0,21113.0,0.12]
[1674219439604,2.38039973,21114.0,21113.0,0.12]
[1674219439821,2.68039973,21114.0,21113.0,0.12]
[1674219440368,2.4938059,21114.0,21113.0,0.12]
[1674219440633,2.38039973,21114.0,21113.0,0.12]
[1674219442228,2.23192982,21114.0,21113.0,0.12]
[1674219443527,2.53192982,21114.0,21113.0,0.12]
[1674219444061,2.51652982,21114.0,21113.0,0.12]
[1674219446138,2.51652982,21114.0,21113.0,0.11987766]
[1674219447713,2.51652982,21114.0,21113.0,0.11978091]
[1674219448433,2.10886849,21114.0,21113.0,0.11978091]
[1674219449176,2.18516849,21114.0,21113.0,0.11978091]
[1674219449436,2.57057211,21114.0,21113.0,0.11978091]
[1674219449697,2.18516849,21114.0,21113.0,0.11978091]
[1674219450234,2.57057211,21114.0,21113.0,0.11978091]
[1674219450495,3.01665573,21114.0,21113.0,0.11678091]
[1674219450759,0.00681204,21112.0,21109.0,0.00204613]
[1674219451031,1.754652,21111.0,21109.0,0.00204613]
[1674219451341,0.309459,21110.0,21109.0,0.00204613]
[1674219451633,1.406877,21110.0,21109.0,0.03804613]
[1674219453288,1.96037869,21110.0,21109.0,0.03804613]
[1674219453507,2.33946725,21110.0,21109.0,0.03804613]
[1674219453831,2.29737262,21110.0,21109.0,0.03804613]
[1674219454044,2.31207262,21110.0,21109.0,0.03504613]
[1674219454303,2.53577262,21110.0,21109.0,0.03504613]
[1674219454563,2.92710939,21110.0,21109.0,0.03504613]
[1674219454828,3.22710939,21110.0,21109.0,0.03504613]
[1674219455631,2.92710939,21110.0,21109.0,0.03504613]
[1674219455891,3.2486094,21110.0,21109.0,0.03504613]
[1674219456152,2.57539297,21110.0,21109.0,0.03504613]
[1674219456741,2.22888341,21110.0,21109.0,0.03504613]
[1674219457021,2.52888341,21110.0,21109.0,0.03504613]
[1674219457284,2.22888341,21110.0,21109.0,0.03504613]
[1674219457556,2.86969957,21110.0,21109.0,0.03504613]
[1674219458392,3.25243163,21110.0,21109.0,0.03504613]
[1674219460520,3.36473163,21110.0,21109.0,0.03504613]
[1674219461549,5.4863978,21110.0,21109.0,0.03504613]
[1674219462079,5.37531278,21110.0,21109.0,0.03504613]
[1674219462081,5.37531278,21110.0,21109.0,0.03004613]
[1674219462353,5.54522775,21110.0,21109.0,0.03004613]
[1674219462620,0.53123307,21108.0,21107.0,0.00223996]
[1674219462872,5.26040761,21108.0,21107.0,0.00223996]
[1674219463150,5.60858259,21108.0,21107.0,0.00223996]
[1674219463414,5.4955454,21108.0,21107.0,0.03723996]
[1674219463663,5.92164659,21108.0,21107.0,0.03723996]
[1674219463947,6.09120237,21108.0,21107.0,0.03723996]
[1674219464214,6.09120237,21108.0,21105.0,0.00227161]
[1674219464215,6.07014759,21108.0,21105.0,0.00227161]
[1674219464689,6.07014759,21108.0,21105.0,0.00127161]
[1674219464690,1.48600169,21106.0,21105.0,0.00127161]
[1674219464693,1.48700169,21106.0,21105.0,0.00127161]
[1674219464951,3.90136181,21106.0,21105.0,0.00127161]
[1674219465222,3.90136181,21106.0,21105.0,0.03727161]
[1674219465749,3.94953679,21106.0,21105.0,0.03627161]
[1674219466038,4.93283898,21106.0,21105.0,0.03627161]
[1674219466302,5.60603898,21106.0,21105.0,0.03627161]
[1674219466607,5.60603898,21106.0,21101.0,0.00252095]
[1674219466608,0.03626939,21105.0,21101.0,0.00252095]
[1674219466878,1.90723069,21104.0,21101.0,0.00252095]
[1674219467173,1.90723069,21104.0,21102.0,0.00152095]
[1674219467174,0.81724569,21103.0,21102.0,0.00152095]
[1674219467439,1.7650824,21103.0,21102.0,0.00152095]
[1674219468272,1.9145824,21103.0,21102.0,0.00152095]
[1674219468582,2.16913188,21103.0,21102.0,0.00152095]
[1674219469120,2.26113188,21103.0,21102.0,0.00052095]
[1674219469379,2.38193188,21103.0,21102.0,0.00052095]
[1674219469929,3.0599433,21103.0,21102.0,0.00052095]
[1674219470712,3.1722433,21103.0,21102.0,0.00052095]
[1674219470967,3.1722433,21103.0,21101.0,0.00252095]
[1674219470968,0.15,21102.0,21101.0,0.00251556]
[1674219471453,2.13667369,21102.0,21101.0,0.00251556]
[1674219471457,2.59849476,21102.0,21101.0,0.00251556]
[1674219471740,2.1326735,21102.0,21101.0,0.00251556]
[1674219472003,0.46953096,21101.0,21100.0,0.0019706]
[1674219472275,1.437303,21101.0,21100.0,0.0019706]
[1674219473105,1.529303,21101.0,21100.0,0.0019706]
[1674219473918,1.379303,21101.0,21100.0,0.0019706]
[1674219474191,1.72901142,21101.0,21100.0,0.0019706]
[1674219474723,1.379303,21101.0,21096.0,0.13156752]
[1674219474999,0.51988197,21100.0,21096.0,0.24386752]
[1674219475481,0.780827,21099.0,21096.0,0.24386752]
[1674219475745,0.324247,21098.0,21096.0,0.1123]
[1674219476003,0.337101,21097.0,21096.0,0.1123]
[1674219476280,0.337101,21097.0,21096.0,0.2623]
[1674219476591,0.337101,21097.0,21096.0,0.1123]
[1674219477101,0.387101,21097.0,21096.0,0.1123]
[1674219477368,1.39306229,21097.0,21096.0,0.1123]
[1674219477627,1.39306229,21097.0,21093.0,0.66741085]
[1674219477628,1.67274232,21097.0,21093.0,0.66741085]
[1674219478109,0.315092,21096.0,21094.0,0.49249896]
[1674219478139,0.315092,21096.0,21093.0,0.23264115]
[1674219478401,0.321793,21095.0,21093.0,0.69579917]
[1674219478659,0.94816771,21096.0,21094.0,0.34177518]
[1674219478920,0.94816771,21096.0,21093.0,0.23264115]
[1674219478921,0.330663,21095.0,21093.0,0.23264115]
[1674219479200,0.328135,21094.0,21093.0,0.6774795]
[1674219479446,0.43906359,21095.0,21093.0,0.6774795]
[1674219480226,0.009,21094.0,21093.0,0.6774795]
[1674219480502,0.43906359,21095.0,21093.0,0.6774795]
[1674219480752,0.43906359,21095.0,21093.0,0.08264115]
[1674219481012,0.39550249,21094.0,21093.0,0.08264115]
[1674219482062,0.39550249,21094.0,21093.0,0.00624115]
[1674219482625,0.40450249,21094.0,21093.0,0.00624115]
[1674219483605,0.72842649,21094.0,21093.0,0.00624115]
[1674219483863,0.40450249,21094.0,21093.0,0.00624115]
[1674219484481,0.76890821,21094.0,21093.0,0.00624115]
[1674219485175,0.76890821,21094.0,21093.0,0.00547845]
[1674219486218,0.438593,21094.0,21093.0,0.00547845]
[1674219486485,0.438593,21094.0,21093.0,0.24547845]
[1674219486486,0.65770949,21094.0,21093.0,0.24547845]
[1674219486743,0.438593,21094.0,21093.0,0.24547845]
[1674219487263,1.78127203,21094.0,21093.0,0.24547845]
[1674219487798,1.38986269,21094.0,21093.0,0.24547845]
[1674219488060,1.67871653,21094.0,21093.0,0.24547845]
[1674219488354,1.66971653,21094.0,21093.0,0.24547845]
[1674219488873,1.76171653,21094.0,21093.0,0.24547845]
[1674219489644,2.14637209,21094.0,21093.0,0.24547845]
[1674219490153,2.14644363,21094.0,21093.0,0.24547845]
[1674219490680,1.48136269,21094.0,21093.0,0.24547845]
[1674219491028,1.85378868,21094.0,21093.0,0.24547845]
[1674219491210,1.25334699,21094.0,21093.0,0.24547845]
[1674219491474,0.47292599,21094.0,21093.0,0.24547845]
[1674219494377,0.78423799,21094.0,21093.0,0.24547845]
[1674219494920,0.99513408,21094.0,21093.0,0.24547845]
[1674219495158,0.78423799,21094.0,21093.0,0.24547845]
[1674219496451,1.25830599,21094.0,21093.0,0.24547845]
[1674219497987,1.73237399,21094.0,21093.0,0.24547845]
[1674219498238,1.82864969,21094.0,21093.0,0.24547845]
[1674219498816,2.51366491,21094.0,21093.0,0.23766577]
[1674219499262,1.9285391,21094.0,21093.0,0.23766577]
[1674219499533,2.2285391,21094.0,21093.0,0.23766577]
[1674219501060,1.83714969,21094.0,21093.0,0.23766577]
[1674219501575,1.74047496,21094.0,21093.0,0.23766577]
[1674219502726,1.42916296,21094.0,21093.0,0.23766577]
[1674219502991,1.75921396,21094.0,21093.0,0.23766577]
[1674219503264,1.42916296,21094.0,21093.0,0.23766577]
[1674219503522,1.74920996,21094.0,21093.0,0.23766577]
[1674219503796,1.42916296,21094.0,21093.0,0.23766577]
[1674219504277,0.092,21094.0,21093.0,0.23766577]
[1674219504544,0.092,21094.0,21093.0,1.11913274]
[1674219504817,0.092,21094.0,21093.0,1.98808474]
[1674219505345,0.092,21094.0,21093.0,2.28808474]
[1674219505601,0.092,21094.0,21093.0,1.95690777]
[1674219505864,0.092,21094.0,21093.0,2.39124802]
[1674219506125,0.43639375,21098.0,21093.0,2.37750914]
[1674219506384,0.43639375,21098.0,21094.0,0.63891556]
[1674219506686,0.43639375,21098.0,21094.0,1.27465156]
[1674219507466,0.41183699,21096.0,21094.0,0.481066]
[1674219507724,0.60615796,21096.0,21094.0,0.007]
[1674219508015,0.335337,21095.0,21094.0,0.007]
[1674219508286,0.41183699,21096.0,21094.0,0.007]
[1674219508548,0.41183699,21096.0,21094.0,0.44699202]
[1674219509097,0.20102,21099.0,21094.0,1.12465656]
[1674219509098,0.473962,21099.0,21094.0,1.12465656]
[1674219509620,0.46918901,21099.0,21098.0,0.0763]
[1674219509888,0.473933,21101.0,21098.0,0.25283456]
[1674219510164,0.37089786,21100.0,21099.0,0.17653456]
[1674219510453,0.473905,21102.0,21099.0,0.17653456]
[1674219510759,0.37263655,21101.0,21100.0,0.0758]
[1674219511033,0.01168694,21103.0,21100.0,0.0758]
[1674219511290,0.01168694,21103.0,21100.0,0.62539205]
[1674219511842,0.44110907,21103.0,21100.0,0.48485749]
[1674219512127,0.4698022,21102.0,21100.0,0.1118]
[1674219512686,0.062,21101.0,21100.0,0.53438894]
[1674219512952,0.01168694,21103.0,21100.0,0.92952194]
[1674219513177,0.07368694,21103.0,21102.0,0.0762]
[1674219513496,0.01168694,21103.0,21102.0,0.0762]
[1674219513759,0.01168694,21103.0,21101.0,0.15]
[1674219513760,0.01168694,21103.0,21101.0,0.37176033]
[1674219514021,0.01168694,21103.0,21102.0,0.1883]
[1674219514289,0.07368694,21103.0,21102.0,0.3023]
[1674219514561,0.07368694,21103.0,21102.0,0.3383]
[1674219515406,0.01168694,21103.0,21102.0,0.3383]
[1674219515675,0.07468694,21103.0,21102.0,0.3413]
[1674219516678,0.07468694,21103.0,21102.0,1.6487013]
[1674219516942,0.07468694,21103.0,21102.0,1.3487013]
[1674219517205,0.07468694,21103.0,21102.0,1.6487013]
[1674219517500,0.01168694,21103.0,21102.0,1.64581824]
[1674219517727,0.01768694,21103.0,21102.0,1.67981824]
[1674219517987,0.01768694,21103.0,21102.0,1.91981824]
[1674219518260,0.01768694,21103.0,21102.0,1.50315538]
[1674219518802,0.01168694,21103.0,21102.0,1.97239274]
[1674219519061,0.01768694,21103.0,21102.0,1.50315538]
[1674219519581,0.01768694,21103.0,21102.0,1.93445538]
[1674219520630,0.01768694,21103.0,21102.0,1.94182738]
[1674219521168,0.01168694,21107.0,21103.0,0.15947569]
[1674219521432,0.01168694,21107.0,21106.0,0.152]
[1674219521706,0.38872641,21107.0,21106.0,0.0758]
[1674219522225,0.3886217,21107.0,21106.0,0.1118]
[1674219522489,0.3896217,21107.0,21106.0,0.1118]
[1674219523059,0.3886217,21107.0,21106.0,0.1118]
[1674219523325,0.4406217,21107.0,21106.0,0.1158]
[1674219524658,0.7599767,21107.0,21106.0,0.1158]
[1674219525477,0.76008141,21107.0,21106.0,0.1158]
[1674219526278,0.91008141,21107.0,21106.0,0.1158]
[1674219526540,0.91008141,21107.0,21106.0,0.04]
[1674219528618,0.53314665,21107.0,21106.0,0.04]
[1674219528874,1.38644834,21107.0,21106.0,0.04]
[1674219529411,1.39494834,21107.0,21106.0,0.04]
[1674219529671,1.76625534,21107.0,21106.0,0.04]
[1674219530197,1.84265534,21107.0,21106.0,0.04]
[1674219530450,2.32525753,21107.0,21106.0,0.04]
[1674219531039,2.37343251,21107.0,21106.0,0.04]
[1674219531831,2.48069251,21107.0,21106.0,0.01028998]
[1674219532346,2.60469251,21107.0,21106.0,0.01028998]
[1674219532350,0.15,21106.0,21103.0,0.00947569]
[1674219532611,0.1524,21104.0,21103.0,0.00947569]
[1674219532890,1.48876325,21104.0,21103.0,0.00947569]
[1674219533151,1.78876325,21104.0,21103.0,0.04547569]
[1674219533425,2.15660544,21104.0,21103.0,0.04547569]
[1674219533689,1.22829169,21104.0,21103.0,0.04547569]
[1674219534226,1.31629169,21104.0,21103.0,0.04547569]
[1674219535292,1.22829169,21104.0,21103.0,0.04547569]
[1674219535832,1.31629169,21104.0,21103.0,0.04547569]
[1674219536349,1.22829169,21104.0,21103.0,0.04547569]
[1674219536624,2.07705447,21104.0,21103.0,0.04547569]
[1674219536886,2.16505447,21104.0,21103.0,0.04547569]
[1674219537162,2.61086603,21104.0,21103.0,0.04547569]
[1674219537463,2.65904101,21104.0,21103.0,0.04547569]
[1674219537985,0.6507,21103.0,21102.0,0.247372]
[1674219538252,0.6507,21103.0,21097.0,0.00658666]
[1674219538253,3.90453855,21103.0,21097.0,0.00658666]
[1674219538519,0.47720169,21101.0,21097.0,0.00658666]
[1674219538783,0.076,21098.0,21097.0,0.00658666]
[1674219539040,2.30149269,21098.0,21097.0,0.00658666]
[1674219539304,1.266713,21098.0,21097.0,0.34926549]
[1674219539573,1.302713,21098.0,21097.0,0.34926549]
[1674219540360,1.390713,21098.0,21097.0,0.34926549]
[1674219540364,1.390713,21098.0,21097.0,0.58926549]
[1674219540627,1.390713,21098.0,21097.0,0.24658666]
[1674219540883,1.72563739,21098.0,21097.0,0.24658666]
[1674219541461,1.25165939,21098.0,21097.0,0.24658666]
[1674219541962,1.72563739,21098.0,21097.0,0.24658666]
[1674219542222,1.25165939,21098.0,21097.0,0.24658666]
[1674219542494,0.68968139,21098.0,21097.0,0.24648357]
[1674219542762,0.78068139,21098.0,21097.0,0.24648357]
[1674219543026,0.46192439,21098.0,21097.0,0.24648357]
[1674219543289,0.46192439,21098.0,21097.0,0.04448744]
[1674219543550,0.78107339,21098.0,21097.0,0.04448744]
[1674219544903,0.127,21098.0,21097.0,0.04448744]
[1674219545162,0.127,21098.0,21097.0,0.58720834]
[1674219545427,0.036,21098.0,21097.0,0.62320834]
[1674219545946,0.126,21098.0,21097.0,0.62320834]
[1674219546205,0.126,21098.0,21097.0,0.61161515]
[1674219546784,0.126,21098.0,21097.0,1.40548715]
[1674219547059,0.126,21098.0,21097.0,1.56266725]
[1674219547323,0.126,21098.0,21097.0,2.31242668]
[1674219548322,0.036,21098.0,21097.0,2.29513742]
[1674219548594,0.046,21098.0,21097.0,1.93876725]
[1674219548847,0.046,21098.0,21097.0,2.32473691]
[1674219549625,3.12128494,21107.0,21098.0,0.15]
[1674219549895,3.12128494,21107.0,21100.0,1.421758]
[1674219549896,0.36173342,21104.0,21100.0,1.421758]
[1674219550164,0.36173342,21104.0,21102.0,0.0764]
[1674219550426,0.36173342,21104.0,21103.0,0.327078]
[1674219550735,0.00010471,21104.0,21102.0,0.0764]
[1674219551260,0.88237556,21105.0,21102.0,0.0764]
[1674219551515,0.325147,21104.0,21102.0,0.1124]
[1674219551790,0.37254756,21105.0,21103.0,0.12178]
[1674219552264,0.40854756,21105.0,21103.0,0.11378]
[1674219552270,0.40854756,21105.0,21103.0,0.50593951]
[1674219552575,0.317363,21104.0,21103.0,0.50593951]
[1674219552842,0.40865227,21105.0,21103.0,0.50593951]
[1674219553099,0.40865227,21105.0,21103.0,0.54193951]
[1674219553653,0.322476,21104.0,21103.0,0.54193951]
[1674219553930,0.472476,21104.0,21103.0,0.044]
[1674219554201,0.91261711,21104.0,21103.0,0.044]
[1674219554484,0.42180311,21104.0,21103.0,0.044]
[1674219554751,0.42180311,21104.0,21103.0,0.036]
[1674219555017,0.42180311,21104.0,21103.0,0.044]
[1674219555277,0.509825,21105.0,21103.0,0.044]
[1674219555538,0.036,21105.0,21104.0,0.3398996]
[1674219555798,0.036,21105.0,21103.0,0.044]
[1674219556280,0.71072045,21104.0,21103.0,0.044]
[1674219556536,0.71072045,21104.0,21103.0,0.036]
[1674219556799,0.72209345,21104.0,21103.0,0.044]
[1674219557072,1.20770645,21104.0,21103.0,0.044]
[1674219557406,1.68154945,21104.0,21103.0,0.044]
[1674219557612,1.68154945,21104.0,21103.0,0.036]
[1674219557842,1.68154945,21104.0,21103.0,0.044]
[1674219558102,1.278358,21104.0,21103.0,0.044]
[1674219558380,2.45133066,21104.0,21103.0,0.044]
[1674219558681,2.4453144,21104.0,21103.0,0.044]
[1674219558944,2.81272874,21104.0,21095.0,0.8867]
[1674219559223,0.0763,21101.0,21095.0,1.06323456]
[1674219559495,1.46949297,21100.0,21099.0,0.036]
[1674219559788,1.27527671,21100.0,21099.0,0.036]
[1674219560284,1.27527671,21100.0,21095.0,0.8867]
[1674219560288,2.20575014,21100.0,21094.0,0.00615537]
[1674219560554,0.88293907,21099.0,21094.0,0.00615537]
[1674219560818,2.32405979,21098.0,21094.0,0.00615537]
[1674219561077,0.51721597,21097.0,21094.0,0.00615537]
[1674219561361,1.40554871,21096.0,21094.0,0.00615537]
[1674219561621,0.33122,21095.0,21094.0,0.00615537]
[1674219561895,1.69020223,21095.0,21094.0,0.00615537]
[1674219562164,1.69020223,21095.0,21092.0,0.036]
[1674219562422,0.314633,21094.0,21092.0,0.036]
[1674219562720,0.332728,21093.0,21091.0,0.33860813]
[1674219563001,0.316885,21092.0,21091.0,0.33860813]